[Event "Late-Titled-Tuesday-Blitz-September-26-2023"]
[Site "Chess.com"]
[Date "2023.09.26"]
[Round "10"]
[White "Hikaru"]
[Black "dretch"]
[Result "1-0"]
[WhiteElo "3164"]
[BlackElo "2848"]
[TimeControl "180+1"]
[EndTime "15:49:46 PDT"]
[Termination "Hikaru won by resignation"]

1. b4 {[%clk 0:03:00.9]} 1... d5 {[%clk 0:02:50.5]} 2. Bb2 {[%clk 0:03:01.2]}
2... Bf5 {[%clk 0:02:50.4]} 3. e3 {[%clk 0:03:00.1]} 3... e6 {[%clk 0:02:50.5]}
4. a3 {[%clk 0:03:00.5]} 4... Nf6 {[%clk 0:02:49.9]} 5. c4 {[%clk 0:03:00.9]}
5... a5 {[%clk 0:02:45]} 6. b5 {[%clk 0:03:00.8]} 6... Nbd7 {[%clk 0:02:44.4]}
7. cxd5 {[%clk 0:02:58.8]} 7... exd5 {[%clk 0:02:43.7]} 8. d4 {[%clk 0:02:59.2]}
8... Bd6 {[%clk 0:02:42.5]} 9. Nc3 {[%clk 0:02:58.7]} 9... O-O {[%clk
0:02:41.7]} 10. Bd3 {[%clk 0:02:59.2]} 10... Bxd3 {[%clk 0:02:38.4]} 11. Qxd3
{[%clk 0:03:00.1]} 11... Nb6 {[%clk 0:02:36.4]} 12. Nf3 {[%clk 0:03:00.6]} 12...
Re8 {[%clk 0:02:32.1]} 13. O-O {[%clk 0:02:59.2]} 13... Ne4 {[%clk 0:02:32.3]}
14. Rfc1 {[%clk 0:02:58.4]} 14... Re6 {[%clk 0:02:28.9]} 15. Rc2 {[%clk
0:02:57.5]} 15... Qe7 {[%clk 0:02:24.9]} 16. g3 {[%clk 0:02:53.6]} 16... Re8
{[%clk 0:02:21.5]} 17. Nh4 {[%clk 0:02:47.3]} 17... Qf6 {[%clk 0:02:14]} 18. Rf1
{[%clk 0:02:37.8]} 18... g5 {[%clk 0:02:07.3]} 19. Ng2 {[%clk 0:02:37.7]} 19...
Nxc3 {[%clk 0:01:56.5]} 20. Rxc3 {[%clk 0:02:37.8]} 20... Qf3 {[%clk 0:01:56.5]}
21. Qd1 {[%clk 0:02:23.2]} 21... Qxd1 {[%clk 0:01:39.8]} 22. Rxd1 {[%clk
0:02:24.1]} 22... Na4 {[%clk 0:01:40.4]} 23. Rc2 {[%clk 0:02:12.9]} 23... Nxb2
{[%clk 0:01:40.7]} 24. Rxb2 {[%clk 0:02:13.8]} 24... Bxa3 {[%clk 0:01:41.1]} 25.
Rb3 {[%clk 0:02:12.6]} 25... Bb4 {[%clk 0:01:39.8]} 26. Ne1 {[%clk 0:02:13.2]}
26... Rb6 {[%clk 0:01:36.4]} 27. Nd3 {[%clk 0:02:12.2]} 27... Bd6 {[%clk
0:01:27.8]} 28. Ra1 {[%clk 0:02:12.4]} 28... Ra8 {[%clk 0:01:25.8]} 29. Nc5
{[%clk 0:02:10.7]} 29... c6 {[%clk 0:01:11.1]} 30. bxc6 {[%clk 0:02:02]} 30...
Bxc5 {[%clk 0:01:10.9]} 31. cxb7 {[%clk 0:02:00.1]} 31... Rb8 {[%clk 0:01:11.1]}
32. dxc5 {[%clk 0:01:57.8]} 32... Rxb3 {[%clk 0:01:11.1]} 33. c6 {[%clk
0:01:58]} 33... R3xb7 {[%clk 0:00:31.3]} 34. cxb7 {[%clk 0:01:58.9]} 34... Rxb7
{[%clk 0:00:32.2]} 35. Rxa5 {[%clk 0:01:58.9]} 35... Rd7 {[%clk 0:00:31.7]} 36.
Kf1 {[%clk 0:01:59.6]} 36... h6 {[%clk 0:00:26.9]} 37. Ke2 {[%clk 0:01:57.7]}
37... Rd6 {[%clk 0:00:22.1]} 38. Kd3 {[%clk 0:01:55.4]} 38... Rf6 {[%clk
0:00:17.5]} 39. f4 {[%clk 0:01:55.7]} 39... gxf4 {[%clk 0:00:16.3]} 40. gxf4
{[%clk 0:01:56.6]} 40... Rf5 {[%clk 0:00:15.2]} 41. Kd4 {[%clk 0:01:43.6]} 41...
Rh5 {[%clk 0:00:15.4]} 42. e4 {[%clk 0:01:43.3]} 42... Rxh2 {[%clk 0:00:15.4]}
43. exd5 {[%clk 0:01:43.9]} 43... Kf8 {[%clk 0:00:12.3]} 44. Ke5 {[%clk
0:01:44.4]} 44... Kg7 {[%clk 0:00:11.5]} 45. d6 {[%clk 0:01:43.7]} 45... Re2+
{[%clk 0:00:10.9]} 46. Kd5 {[%clk 0:01:43.7]} 46... Kf6 {[%clk 0:00:11.4]} 47.
Kc6 {[%clk 0:01:42.8]} 47... Rc2+ {[%clk 0:00:11.4]} 48. Rc5 {[%clk 0:01:38.8]}
48... Rd2 {[%clk 0:00:10.8]} 49. Kc7 {[%clk 0:01:34.6]} 49... Rd4 {[%clk
0:00:09.3]} 50. d7 {[%clk 0:01:32.4]} 50... Kg6 {[%clk 0:00:05.6]} 51. d8=Q
{[%clk 0:01:31.9]} 51... Rxd8 {[%clk 0:00:04.9]} 52. Kxd8 {[%clk 0:01:32.8]}
52... h5 {[%clk 0:00:05.5]} 53. Rg5+ {[%clk 0:01:33.1]} 53... Kh6 {[%clk
0:00:06]} 54. Ke7 {[%clk 0:01:33.4]} 1-0

[Event "Late-Titled-Tuesday-Blitz-September-26-2023"]
[Site "Chess.com"]
[Date "2023.09.26"]
[Round "10"]
[White "Nf3c5"]
[Black "Balla_Tamas"]
[Result "0-1"]
[WhiteElo "2578"]
[BlackElo "2443"]
[TimeControl "180+1"]
[EndTime "15:49:46 PDT"]
[Termination "Balla_Tamas won on time"]

1. e4 {[%clk 0:02:55.2]} 1... c5 {[%clk 0:02:59.8]} 2. Nf3 {[%clk 0:02:54.1]}
2... Nc6 {[%clk 0:03:00.2]} 3. b4 {[%clk 0:02:53.3]} 3... cxb4 {[%clk
0:02:53.5]} 4. d4 {[%clk 0:02:48.3]} 4... d5 {[%clk 0:02:54.1]} 5. exd5 {[%clk
0:02:48.5]} 5... Qxd5 {[%clk 0:02:55]} 6. c4 {[%clk 0:02:48.6]} 6... bxc3 {[%clk
0:02:55.3]} 7. Nxc3 {[%clk 0:02:48]} 7... Qa5 {[%clk 0:02:55.6]} 8. d5 {[%clk
0:02:44.1]} 8... e6 {[%clk 0:02:40.9]} 9. dxc6 {[%clk 0:02:06.4]} 9... Bb4
{[%clk 0:02:31.4]} 10. Bd2 {[%clk 0:02:02.7]} 10... Bxc3 {[%clk 0:02:31]} 11.
Rc1 {[%clk 0:02:02]} 11... Bxd2+ {[%clk 0:02:27.8]} 12. Nxd2 {[%clk 0:02:01.6]}
12... bxc6 {[%clk 0:02:24.5]} 13. Qc2 {[%clk 0:01:50.2]} 13... Ne7 {[%clk
0:02:22.2]} 14. Bd3 {[%clk 0:01:45.2]} 14... Qe5+ {[%clk 0:02:17.6]} 15. Kf1
{[%clk 0:01:33]} 15... h6 {[%clk 0:02:05.4]} 16. Nc4 {[%clk 0:01:25.5]} 16...
Qc7 {[%clk 0:01:51.3]} 17. h4 {[%clk 0:01:20.2]} 17... O-O {[%clk 0:01:50.9]}
18. Rh3 {[%clk 0:01:20.3]} 18... Ba6 {[%clk 0:01:48.6]} 19. Rg3 {[%clk
0:01:13.8]} 19... Rfd8 {[%clk 0:01:47]} 20. Kg1 {[%clk 0:01:13.9]} 20... Rd4
{[%clk 0:01:43]} 21. Bh7+ {[%clk 0:01:06.9]} 21... Kh8 {[%clk 0:01:43.1]} 22.
Bd3 {[%clk 0:00:50.1]} 22... Rad8 {[%clk 0:01:36.7]} 23. Bf1 {[%clk 0:00:50.4]}
23... Rxh4 {[%clk 0:01:35.7]} 24. Qc3 {[%clk 0:00:47.4]} 24... Nf5 {[%clk
0:01:34.7]} 25. Rh3 {[%clk 0:00:29.2]} 25... Rxh3 {[%clk 0:01:33.5]} 26. gxh3
{[%clk 0:00:30.1]} 26... Qf4 {[%clk 0:01:27.2]} 27. Ne5 {[%clk 0:00:24]} 27...
Nd6 {[%clk 0:00:56.9]} 28. Bxa6 {[%clk 0:00:20.4]} 28... Ne4 {[%clk 0:00:57.4]}
29. Qe3 {[%clk 0:00:02.3]} 29... Qxe5 {[%clk 0:00:57]} 30. Re1 {[%clk
0:00:02.4]} 30... Qg5+ {[%clk 0:00:52.7]} 31. Qxg5 {[%clk 0:00:01.6]} 31... Nxg5
{[%clk 0:00:53.6]} 32. Kg2 {[%clk 0:00:01.5]} 32... Rd2 {[%clk 0:00:53.9]} 33.
a4 {[%clk 0:00:01.3]} 33... Ra2 {[%clk 0:00:53.8]} 0-1

[Event "Late-Titled-Tuesday-Blitz-September-26-2023"]
[Site "Chess.com"]
[Date "2023.09.26"]
[Round "10"]
[White "reevecanada"]
[Black "YouShallNotPass001"]
[Result "1-0"]
[WhiteElo "2546"]
[BlackElo "2371"]
[TimeControl "180+1"]
[EndTime "15:49:48 PDT"]
[Termination "reevecanada won by resignation"]

1. e4 {[%clk 0:03:00.9]} 1... e5 {[%clk 0:02:59.3]} 2. Nf3 {[%clk 0:03:00.8]}
2... Nc6 {[%clk 0:02:59.7]} 3. d4 {[%clk 0:03:01.4]} 3... exd4 {[%clk
0:02:59.3]} 4. Nxd4 {[%clk 0:03:01.4]} 4... Bc5 {[%clk 0:02:59.9]} 5. Nb3 {[%clk
0:03:01.6]} 5... Bb6 {[%clk 0:02:59.9]} 6. Nc3 {[%clk 0:03:02.2]} 6... Nf6
{[%clk 0:02:59.8]} 7. Qe2 {[%clk 0:03:02.4]} 7... O-O {[%clk 0:02:56.9]} 8. Be3
{[%clk 0:03:03.1]} 8... Re8 {[%clk 0:02:55.5]} 9. f3 {[%clk 0:03:00]} 9... d5
{[%clk 0:02:46.3]} 10. O-O-O {[%clk 0:02:59.3]} 10... d4 {[%clk 0:02:44.2]} 11.
Bg5 {[%clk 0:02:57.6]} 11... Be6 {[%clk 0:02:40.2]} 12. Kb1 {[%clk 0:02:55.1]}
12... h6 {[%clk 0:02:29.8]} 13. Bh4 {[%clk 0:02:54.8]} 13... a5 {[%clk
0:02:23.6]} 14. Na4 {[%clk 0:02:49.9]} 14... Ba7 {[%clk 0:02:11.6]} 15. Bf2
{[%clk 0:02:49]} 15... Bxb3 {[%clk 0:02:05.5]} 16. axb3 {[%clk 0:02:48.4]} 16...
Qe7 {[%clk 0:02:05.5]} 17. Qb5 {[%clk 0:02:46.4]} 17... Rab8 {[%clk 0:02:04.5]}
18. Bd3 {[%clk 0:02:40.1]} 18... Qe5 {[%clk 0:01:30.2]} 19. g3 {[%clk
0:02:26.1]} 19... Red8 {[%clk 0:01:22]} 20. Rhe1 {[%clk 0:02:21.7]} 20... Qxb5
{[%clk 0:01:08.9]} 21. Bxb5 {[%clk 0:02:21.1]} 21... Ne7 {[%clk 0:01:09.4]} 22.
e5 {[%clk 0:02:06.4]} 22... Nh7 {[%clk 0:01:08.8]} 23. e6 {[%clk 0:01:40.3]}
23... f6 {[%clk 0:00:30.2]} 24. Bf1 {[%clk 0:01:32.1]} 24... b5 {[%clk
0:00:28.3]} 25. Nc3 {[%clk 0:01:31.3]} 25... c6 {[%clk 0:00:10.2]} 26. Ne2
{[%clk 0:01:29.8]} 26... c5 {[%clk 0:00:09]} 27. f4 {[%clk 0:01:28.8]} 27... Nf8
{[%clk 0:00:08.4]} 28. Bh3 {[%clk 0:01:24.3]} 28... g6 {[%clk 0:00:08.4]} 29.
Ng1 {[%clk 0:01:22.4]} 29... h5 {[%clk 0:00:07.8]} 30. Nf3 {[%clk 0:01:21]}
30... Rd5 {[%clk 0:00:07.1]} 31. c3 {[%clk 0:01:15.2]} 31... d3 {[%clk
0:00:06.3]} 32. Rd2 {[%clk 0:01:08.7]} 32... Rbd8 {[%clk 0:00:05.9]} 33. Red1
{[%clk 0:01:07.9]} 33... Bb8 {[%clk 0:00:06.5]} 34. c4 {[%clk 0:01:03.5]} 34...
bxc4 {[%clk 0:00:06.3]} 35. bxc4 {[%clk 0:01:04.4]} 35... R5d6 {[%clk
0:00:06.5]} 36. Bxc5 {[%clk 0:01:04.8]} 36... Nxe6 {[%clk 0:00:03.6]} 37. Bxd6
{[%clk 0:01:03.5]} 37... Rxd6 {[%clk 0:00:04.5]} 38. Rxd3 {[%clk 0:01:03]} 38...
Rc6 {[%clk 0:00:04.5]} 39. Bxe6+ {[%clk 0:01:02.8]} 39... Rxe6 {[%clk
0:00:03.4]} 40. Rd8+ {[%clk 0:01:03.4]} 1-0

[Event "Late-Titled-Tuesday-Blitz-September-26-2023"]
[Site "Chess.com"]
[Date "2023.09.26"]
[Round "10"]
[White "MMSANCHEZ"]
[Black "vugarrasulov"]
[Result "0-1"]
[WhiteElo "2704"]
[BlackElo "2955"]
[TimeControl "180+1"]
[EndTime "15:49:50 PDT"]
[Termination "vugarrasulov won by resignation"]

1. d4 {[%clk 0:02:35.7]} 1... Nf6 {[%clk 0:02:59.9]} 2. Nf3 {[%clk 0:02:35.3]}
2... d5 {[%clk 0:02:59.9]} 3. c4 {[%clk 0:02:33.5]} 3... e6 {[%clk 0:03:00]} 4.
Nc3 {[%clk 0:02:33.3]} 4... Be7 {[%clk 0:02:59.5]} 5. Bf4 {[%clk 0:02:32.3]}
5... O-O {[%clk 0:02:59.6]} 6. a3 {[%clk 0:02:32.8]} 6... Nbd7 {[%clk
0:02:50.5]} 7. c5 {[%clk 0:02:25.5]} 7... Nh5 {[%clk 0:02:48.2]} 8. e3 {[%clk
0:02:25.8]} 8... Nxf4 {[%clk 0:02:44.4]} 9. exf4 {[%clk 0:02:26.7]} 9... c6
{[%clk 0:02:44.9]} 10. Bd3 {[%clk 0:02:23.4]} 10... b6 {[%clk 0:02:42.8]} 11. b4
{[%clk 0:02:23.4]} 11... a5 {[%clk 0:02:43.3]} 12. O-O {[%clk 0:02:23]} 12...
Ba6 {[%clk 0:02:43.3]} 13. g3 {[%clk 0:02:11.8]} 13... Qc7 {[%clk 0:02:39.9]}
14. Bxa6 {[%clk 0:01:58.9]} 14... Rxa6 {[%clk 0:02:40.8]} 15. Qd3 {[%clk
0:01:58.5]} 15... Rfa8 {[%clk 0:02:30.9]} 16. b5 {[%clk 0:01:55.9]} 16... cxb5
{[%clk 0:02:30.3]} 17. Nxb5 {[%clk 0:01:56.2]} 17... Qc6 {[%clk 0:02:25.4]} 18.
cxb6 {[%clk 0:01:54.7]} 18... Rxb6 {[%clk 0:02:18.2]} 19. a4 {[%clk 0:01:55]}
19... Qb7 {[%clk 0:02:13.1]} 20. Rac1 {[%clk 0:01:51.8]} 20... Rc8 {[%clk
0:02:07.3]} 21. Kg2 {[%clk 0:01:43.9]} 21... h6 {[%clk 0:02:06.4]} 22. Qb1
{[%clk 0:01:36.7]} 22... Rbc6 {[%clk 0:01:59.7]} 23. Rxc6 {[%clk 0:01:27.4]}
23... Rxc6 {[%clk 0:02:00.6]} 24. f5 {[%clk 0:01:26.4]} 24... Bb4 {[%clk
0:01:49.6]} 25. fxe6 {[%clk 0:01:25]} 25... Rxe6 {[%clk 0:01:50.5]} 26. Rc1
{[%clk 0:01:21.3]} 26... Nb6 {[%clk 0:01:47.9]} 27. Rc7 {[%clk 0:01:17.9]} 27...
Qb8 {[%clk 0:01:48.2]} 28. Qf5 {[%clk 0:01:17.8]} 28... Rf6 {[%clk 0:01:43.8]}
29. Qg4 {[%clk 0:01:11.9]} 29... Bf8 {[%clk 0:01:41.6]} 30. Ne5 {[%clk
0:01:08.5]} 30... Qe8 {[%clk 0:01:37.6]} 31. Nd7 {[%clk 0:00:40.3]} 31... Nxd7
{[%clk 0:01:28.9]} 32. Rxd7 {[%clk 0:00:37.8]} 32... Qe1 {[%clk 0:01:26]} 33. f4
{[%clk 0:00:33.2]} 33... Re6 {[%clk 0:01:21.1]} 34. Kh3 {[%clk 0:00:18.2]} 34...
Qf1+ {[%clk 0:01:18.4]} 35. Kh4 {[%clk 0:00:18.5]} 35... Qf2 {[%clk 0:01:07.3]}
36. Rd8 {[%clk 0:00:14.4]} 36... Qxh2+ {[%clk 0:01:05.3]} 37. Qh3 {[%clk
0:00:14.4]} 37... g5+ {[%clk 0:01:04.9]} 38. Kg4 {[%clk 0:00:13.4]} 38... f5+
{[%clk 0:00:56.3]} 0-1

[Event "Late-Titled-Tuesday-Blitz-September-26-2023"]
[Site "Chess.com"]
[Date "2023.09.26"]
[Round "10"]
[White "ferrufino64"]
[Black "Chessbard1972"]
[Result "0-1"]
[WhiteElo "2202"]
[BlackElo "2379"]
[TimeControl "180+1"]
[EndTime "15:49:50 PDT"]
[Termination "Chessbard1972 won on time"]

1. e4 {[%clk 0:02:51.9]} 1... c5 {[%clk 0:02:58]} 2. Nf3 {[%clk 0:02:48.8]} 2...
a6 {[%clk 0:02:56.5]} 3. c4 {[%clk 0:02:46.6]} 3... e6 {[%clk 0:02:55.8]} 4. a3
{[%clk 0:02:44.1]} 4... Qc7 {[%clk 0:02:53.7]} 5. d4 {[%clk 0:02:43.4]} 5...
cxd4 {[%clk 0:02:52.3]} 6. Nxd4 {[%clk 0:02:43.4]} 6... Nf6 {[%clk 0:02:52.9]}
7. Nc3 {[%clk 0:02:43.2]} 7... b6 {[%clk 0:02:51.9]} 8. Be2 {[%clk 0:02:31.9]}
8... Bb7 {[%clk 0:02:46.3]} 9. f3 {[%clk 0:02:32]} 9... Nc6 {[%clk 0:02:45.1]}
10. Be3 {[%clk 0:02:31.4]} 10... Ne5 {[%clk 0:02:44.8]} 11. Qb3 {[%clk 0:02:15]}
11... Rc8 {[%clk 0:02:40.2]} 12. Nc2 {[%clk 0:02:12.8]} 12... Bc5 {[%clk
0:02:36.6]} 13. Bxc5 {[%clk 0:02:07.7]} 13... bxc5 {[%clk 0:02:35.5]} 14. O-O-O
{[%clk 0:02:01.3]} 14... Bc6 {[%clk 0:02:32.6]} 15. Ne3 {[%clk 0:01:34.8]} 15...
Rb8 {[%clk 0:02:30.1]} 16. Qc2 {[%clk 0:01:35.2]} 16... O-O {[%clk 0:02:20.9]}
17. h3 {[%clk 0:01:24.1]} 17... Ng6 {[%clk 0:02:19.2]} 18. Ng4 {[%clk 0:01:15]}
18... Nh5 {[%clk 0:02:16.1]} 19. Rhe1 {[%clk 0:01:08.2]} 19... Ng3 {[%clk
0:02:09.4]} 20. Bf1 {[%clk 0:00:54.4]} 20... Nf4 {[%clk 0:01:56.8]} 21. Qf2
{[%clk 0:00:30.9]} 21... h5 {[%clk 0:01:53.7]} 22. Ne3 {[%clk 0:00:09.5]} 22...
Rb3 {[%clk 0:01:48.9]} 23. Rd2 {[%clk 0:00:07.2]} 23... Rfb8 {[%clk 0:01:45.9]}
24. Ned1 {[%clk 0:00:07.4]} 24... Ba8 {[%clk 0:01:36.6]} 25. e5 {[%clk
0:00:06.8]} 25... Nxf1 {[%clk 0:01:26.2]} 26. Qxf1 {[%clk 0:00:05]} 26... Qa5
{[%clk 0:01:19.9]} 27. g3 {[%clk 0:00:04.5]} 27... Ng6 {[%clk 0:01:17.8]} 28. f4
{[%clk 0:00:04.4]} 28... Bc6 {[%clk 0:01:09.1]} 29. Qe2 {[%clk 0:00:03.6]} 29...
Ne7 {[%clk 0:01:05.8]} 30. Qxh5 {[%clk 0:00:03.4]} 30... Nf5 {[%clk 0:01:05.9]}
31. Qg4 {[%clk 0:00:02.5]} 31... Nd4 {[%clk 0:01:05]} 32. h4 {[%clk 0:00:01.7]}
32... Bf3 {[%clk 0:00:56.1]} 33. Qg5 {[%clk 0:00:01.2]} 33... Bxd1 {[%clk
0:00:55.2]} 34. Rexd1 {[%clk 0:00:01.5]} 34... Rxc3+ {[%clk 0:00:54]} 0-1

[Event "Late-Titled-Tuesday-Blitz-September-26-2023"]
[Site "Chess.com"]
[Date "2023.09.26"]
[Round "10"]
[White "valemava"]
[Black "YellowJacek"]
[Result "0-1"]
[WhiteElo "2383"]
[BlackElo "2326"]
[TimeControl "180+1"]
[EndTime "15:49:52 PDT"]
[Termination "YellowJacek won on time"]

1. e4 {[%clk 0:03:00.9]} 1... c5 {[%clk 0:02:58.5]} 2. a3 {[%clk 0:03:01]} 2...
Nf6 {[%clk 0:02:56.1]} 3. e5 {[%clk 0:02:59.4]} 3... Nd5 {[%clk 0:02:55.5]} 4.
c4 {[%clk 0:02:59.6]} 4... Nc7 {[%clk 0:02:53.8]} 5. b4 {[%clk 0:03:00]} 5... b6
{[%clk 0:02:51.5]} 6. b5 {[%clk 0:02:54.9]} 6... a6 {[%clk 0:02:50.1]} 7. Nc3
{[%clk 0:02:49.3]} 7... d6 {[%clk 0:02:44.3]} 8. exd6 {[%clk 0:02:45.4]} 8...
Qxd6 {[%clk 0:02:45.2]} 9. Bb2 {[%clk 0:02:44.5]} 9... Bb7 {[%clk 0:02:45]} 10.
a4 {[%clk 0:02:39.1]} 10... Nd7 {[%clk 0:02:40.1]} 11. Nf3 {[%clk 0:02:38.6]}
11... Qe6+ {[%clk 0:02:33.1]} 12. Be2 {[%clk 0:02:36.7]} 12... Bxf3 {[%clk
0:02:32.8]} 13. gxf3 {[%clk 0:02:37.6]} 13... Ne5 {[%clk 0:02:29.3]} 14. O-O
{[%clk 0:01:35.6]} 14... Nxc4 {[%clk 0:02:26.8]} 15. Bxc4 {[%clk 0:01:31.9]}
15... Qxc4 {[%clk 0:02:27.7]} 16. Ne4 {[%clk 0:01:30.1]} 16... e6 {[%clk
0:02:20.8]} 17. d4 {[%clk 0:01:21.4]} 17... Nd5 {[%clk 0:02:03.6]} 18. Rc1
{[%clk 0:01:10.9]} 18... Qb4 {[%clk 0:01:51.9]} 19. Ba1 {[%clk 0:01:04.4]} 19...
axb5 {[%clk 0:01:48]} 20. dxc5 {[%clk 0:01:01.7]} 20... Bxc5 {[%clk 0:01:43.4]}
21. axb5 {[%clk 0:00:58.7]} 21... O-O {[%clk 0:01:39.4]} 22. Kh1 {[%clk
0:00:48.3]} 22... f5 {[%clk 0:01:27.1]} 23. Rg1 {[%clk 0:00:41.5]} 23... Rxa1
{[%clk 0:01:20.7]} 24. Rxa1 {[%clk 0:00:34.9]} 24... fxe4 {[%clk 0:01:19.9]} 25.
Ra7 {[%clk 0:00:31.9]} 25... Ne7 {[%clk 0:01:18.4]} 26. Qd7 {[%clk 0:00:27.6]}
26... Qb3 {[%clk 0:01:12.9]} 27. Qd1 {[%clk 0:00:10.6]} 27... Qxf3+ {[%clk
0:01:10.8]} 28. Qxf3 {[%clk 0:00:09.7]} 28... Rxf3 {[%clk 0:01:11.4]} 29. Rg4
{[%clk 0:00:09.2]} 29... Rxf2 {[%clk 0:01:09.5]} 30. Rxe4 {[%clk 0:00:09.3]}
30... Kf7 {[%clk 0:01:08.1]} 31. h4 {[%clk 0:00:07.6]} 31... Kf6 {[%clk
0:01:07.9]} 32. Rg4 {[%clk 0:00:05.4]} 32... Nf5 {[%clk 0:01:07.8]} 33. Rc7
{[%clk 0:00:03.4]} 33... Rb2 {[%clk 0:01:07.1]} 34. h5 {[%clk 0:00:02.9]} 34...
Rxb5 {[%clk 0:01:04.2]} 35. h6 {[%clk 0:00:03.1]} 35... Rb1+ {[%clk 0:00:59.5]}
36. Kg2 {[%clk 0:00:02.9]} 36... Ne3+ {[%clk 0:00:59]} 37. Kf3 {[%clk
0:00:03.4]} 37... Nxg4 {[%clk 0:00:59.9]} 38. hxg7 {[%clk 0:00:03.5]} 38... Nh6
{[%clk 0:00:58.6]} 0-1

[Event "Late-Titled-Tuesday-Blitz-September-26-2023"]
[Site "Chess.com"]
[Date "2023.09.26"]
[Round "10"]
[White "Lady_Nika"]
[Black "alexrustemov"]
[Result "1-0"]
[WhiteElo "2542"]
[BlackElo "2840"]
[TimeControl "180+1"]
[EndTime "15:49:55 PDT"]
[Termination "Lady_Nika won on time"]

1. e4 {[%clk 0:03:00.9]} 1... e6 {[%clk 0:02:56.4]} 2. d4 {[%clk 0:03:00.7]}
2... d5 {[%clk 0:02:56.9]} 3. exd5 {[%clk 0:03:01.1]} 3... exd5 {[%clk
0:02:56.6]} 4. Nf3 {[%clk 0:03:02]} 4... Bf5 {[%clk 0:02:56.8]} 5. Bd3 {[%clk
0:03:02.4]} 5... Bxd3 {[%clk 0:02:55.9]} 6. Qxd3 {[%clk 0:03:03.3]} 6... Nc6
{[%clk 0:02:55.6]} 7. O-O {[%clk 0:03:02.9]} 7... Bd6 {[%clk 0:02:54.3]} 8. Re1+
{[%clk 0:03:02.9]} 8... Nge7 {[%clk 0:02:54]} 9. a3 {[%clk 0:03:00.8]} 9... Qd7
{[%clk 0:02:51.8]} 10. c4 {[%clk 0:02:59.1]} 10... dxc4 {[%clk 0:02:49.3]} 11.
Qxc4 {[%clk 0:03:00]} 11... O-O {[%clk 0:02:48.1]} 12. b4 {[%clk 0:02:56.4]}
12... Rae8 {[%clk 0:02:44]} 13. Bb2 {[%clk 0:02:56.1]} 13... Ng6 {[%clk
0:02:40.2]} 14. Nbd2 {[%clk 0:02:50.7]} 14... Nf4 {[%clk 0:02:38.4]} 15. Ne4
{[%clk 0:02:44.4]} 15... Qg4 {[%clk 0:02:31.9]} 16. Ng3 {[%clk 0:02:43.2]} 16...
h5 {[%clk 0:02:11.8]} 17. Qb3 {[%clk 0:02:29.8]} 17... h4 {[%clk 0:02:08.9]} 18.
h3 {[%clk 0:02:26.9]} 18... Nxh3+ {[%clk 0:01:52.7]} 19. gxh3 {[%clk 0:02:26.2]}
19... Qxh3 {[%clk 0:01:52.2]} 20. Ng5 {[%clk 0:02:26.5]} 20... Qd7 {[%clk
0:01:40.3]} 21. N3e4 {[%clk 0:02:19.1]} 21... Ne7 {[%clk 0:01:06.4]} 22. Qf3
{[%clk 0:02:06.3]} 22... f6 {[%clk 0:01:00.1]} 23. Qb3+ {[%clk 0:01:52.4]} 23...
Kh8 {[%clk 0:00:58]} 24. Ne6 {[%clk 0:01:44.7]} 24... Rf7 {[%clk 0:00:52.5]} 25.
Nxd6 {[%clk 0:01:43.9]} 25... cxd6 {[%clk 0:00:48]} 26. Re4 {[%clk 0:01:43.3]}
26... Nf5 {[%clk 0:00:37.4]} 27. d5 {[%clk 0:01:39.8]} 27... Rfe7 {[%clk
0:00:29.4]} 28. Qf3 {[%clk 0:01:38.4]} 28... Nh6 {[%clk 0:00:25.2]} 29. Rxh4
{[%clk 0:01:37.4]} 29... Qa4 {[%clk 0:00:12.7]} 30. Bxf6 {[%clk 0:01:28.2]}
30... Rf7 {[%clk 0:00:09.2]} 31. Rxh6+ {[%clk 0:01:27.3]} 31... Kg8 {[%clk
0:00:09]} 32. Rg6 {[%clk 0:01:20.5]} 32... Qc2 {[%clk 0:00:03.2]} 33. Rxg7+
{[%clk 0:01:18.3]} 33... Rxg7+ {[%clk 0:00:03.1]} 34. Bxg7 {[%clk 0:01:18.4]}
34... Qg6+ {[%clk 0:00:03]} 35. Qg2 {[%clk 0:01:07.6]} 35... Qxg2+ {[%clk
0:00:01.7]} 36. Kxg2 {[%clk 0:01:07.7]} 36... Rc8 {[%clk 0:00:02.3]} 37. Re1
{[%clk 0:01:05.8]} 37... Kf7 {[%clk 0:00:02.6]} 38. Re3 {[%clk 0:01:05.6]} 1-0

[Event "Late-Titled-Tuesday-Blitz-September-26-2023"]
[Site "Chess.com"]
[Date "2023.09.26"]
[Round "10"]
[White "Defenstrator"]
[Black "zajka-molotok"]
[Result "0-1"]
[WhiteElo "2399"]
[BlackElo "2570"]
[TimeControl "180+1"]
[EndTime "15:49:58 PDT"]
[Termination "zajka-molotok won by resignation"]

1. c4 {[%clk 0:03:00.4]} 1... e5 {[%clk 0:02:59]} 2. Nf3 {[%clk 0:03:00]} 2...
e4 {[%clk 0:02:56.2]} 3. Nd4 {[%clk 0:03:00.2]} 3... Nc6 {[%clk 0:02:50]} 4.
Nxc6 {[%clk 0:02:59.8]} 4... dxc6 {[%clk 0:02:47]} 5. Nc3 {[%clk 0:02:58.8]}
5... Nf6 {[%clk 0:02:40.2]} 6. e3 {[%clk 0:02:49.2]} 6... Bf5 {[%clk 0:02:39.1]}
7. Qb3 {[%clk 0:02:47.3]} 7... b6 {[%clk 0:02:34.9]} 8. h3 {[%clk 0:02:35.3]}
8... h5 {[%clk 0:02:31]} 9. Qc2 {[%clk 0:02:26.8]} 9... Bd6 {[%clk 0:02:27.2]}
10. b3 {[%clk 0:02:19.5]} 10... Qe7 {[%clk 0:02:24.6]} 11. Bb2 {[%clk
0:02:10.4]} 11... h4 {[%clk 0:02:21.3]} 12. O-O-O {[%clk 0:02:01.6]} 12... Bg6
{[%clk 0:02:19.4]} 13. Kb1 {[%clk 0:01:45.5]} 13... O-O-O {[%clk 0:02:16.9]} 14.
a3 {[%clk 0:01:42.2]} 14... Bxa3 {[%clk 0:02:13]} 15. Ba1 {[%clk 0:01:41.6]}
15... Bb4 {[%clk 0:02:05.4]} 16. Na4 {[%clk 0:01:39.5]} 16... c5 {[%clk
0:01:47.6]} 17. Be2 {[%clk 0:01:17]} 17... Rd6 {[%clk 0:01:40.8]} 18. Nc3 {[%clk
0:01:16.7]} 18... Rhd8 {[%clk 0:01:34.3]} 19. Bg4+ {[%clk 0:00:58.9]} 19... Nxg4
{[%clk 0:01:32.5]} 20. hxg4 {[%clk 0:00:59.8]} 20... a6 {[%clk 0:01:27.4]} 21.
Nd5 {[%clk 0:00:56.1]} 21... Qg5 {[%clk 0:01:18.1]} 22. Bxg7 {[%clk 0:00:47.1]}
22... Qxg4 {[%clk 0:01:08.7]} 23. Be5 {[%clk 0:00:38.2]} 23... Rxd5 {[%clk
0:01:06.5]} 24. cxd5 {[%clk 0:00:38.7]} 24... Rxd5 {[%clk 0:01:07.3]} 25. Bf6
{[%clk 0:00:27.9]} 25... Qxg2 {[%clk 0:01:00.3]} 26. Rxh4 {[%clk 0:00:26]} 26...
Qxf2 {[%clk 0:00:57]} 27. Bc3 {[%clk 0:00:22.1]} 27... Qxh4 {[%clk 0:00:52.1]}
28. Bxb4 {[%clk 0:00:22.1]} 28... cxb4 {[%clk 0:00:53]} 29. Qc6 {[%clk
0:00:22.4]} 29... Rc5 {[%clk 0:00:49]} 30. Qa8+ {[%clk 0:00:22.2]} 30... Kd7
{[%clk 0:00:48.9]} 31. Qxa6 {[%clk 0:00:14]} 31... Qg4 {[%clk 0:00:48.4]} 32.
Rc1 {[%clk 0:00:09.6]} 32... Rxc1+ {[%clk 0:00:47.4]} 33. Kxc1 {[%clk
0:00:10.5]} 33... Qe6 {[%clk 0:00:47.2]} 34. Qb5+ {[%clk 0:00:10.9]} 34... Qc6+
{[%clk 0:00:47.2]} 35. Qxc6+ {[%clk 0:00:11.6]} 35... Kxc6 {[%clk 0:00:48.1]}
0-1